bitfinex/quotes_BTCUSD_20240901
["timestamp","ask_amount","ask_price","bid_price","bid_amount"]
[1725207841168,1.99718872,58363.0,58362.0,0.166198]
[1725207841388,1.99918872,58363.0,58362.0,0.166198]
[1725207841622,2.00318872,58363.0,58362.0,0.166198]
[1725207841865,1.65850672,58363.0,58362.0,0.166198]
[1725207842081,1.57777972,58363.0,58362.0,0.166198]
[1725207843221,1.92246172,58363.0,58362.0,0.008998]
[1725207843481,1.92046172,58363.0,58362.0,0.008998]
[1725207843729,2.11401336,58363.0,58362.0,0.008998]
[1725207843946,2.11201336,58363.0,58362.0,0.008998]
[1725207844198,2.45669536,58363.0,58362.0,0.008998]
[1725207844435,2.45469536,58363.0,58362.0,0.008998]
[1725207844649,2.45751336,58363.0,58362.0,0.008998]
[1725207844878,2.45551336,58363.0,58362.0,0.008998]
[1725207846010,2.45751336,58363.0,58362.0,0.008998]
[1725207848895,2.52628636,58363.0,58362.0,0.008998]
[1725207849360,2.44507518,58363.0,58362.0,0.008998]
[1725207851240,4.50196518,58363.0,58362.0,0.008998]
[1725207851771,3.99073154,58363.0,58362.0,0.008998]
[1725207851996,3.99073154,58363.0,58362.0,0.16602517]
[1725207851997,2.53047254,58363.0,58362.0,0.16602517]
[1725207852227,2.49123398,58363.0,58362.0,0.16602517]
[1725207855019,2.48923398,58363.0,58362.0,0.16602517]
[1725207855246,2.65778562,58363.0,58362.0,0.07722517]
[1725207855456,2.65778562,58363.0,58362.0,0.00882517]
[1725207856335,2.33373854,58363.0,58362.0,0.00882517]
[1725207856603,2.45098298,58363.0,58362.0,0.07992517]
[1725207860541,2.45098298,58363.0,58362.0,0.00882517]
[1725207860760,2.53219416,58363.0,58362.0,0.00882517]
[1725207861849,4.22943816,58363.0,58362.0,0.00882517]
[1725207862140,4.3979898,58363.0,58362.0,0.00882517]
[1725207862971,4.3959898,58363.0,58362.0,0.00882517]
[1725207864326,4.3979898,58363.0,58362.0,0.00882517]
[1725207865731,4.3959898,58363.0,58362.0,0.00882517]
[1725207867309,4.3979898,58363.0,58362.0,0.00882517]
[1725207869370,4.3959898,58363.0,58362.0,0.00882517]
[1725207869785,4.3979898,58363.0,58362.0,0.00882517]
[1725207870197,3.80710016,58363.0,58362.0,0.00882517]
[1725207872020,3.37673516,58363.0,58362.0,0.00882517]
[1725207872961,3.37473516,58363.0,58362.0,0.07992517]
[1725207873167,2.72067516,58363.0,58362.0,0.07992517]
[1725207873372,2.63699316,58363.0,58362.0,0.07992517]
[1725207873582,2.63899316,58363.0,58362.0,0.07992517]
[1725207873802,2.8075448,58363.0,58362.0,0.07992517]
[1725207877122,2.63899316,58363.0,58362.0,0.07992517]
[1725207882277,2.63699316,58363.0,58362.0,0.07992517]
[1725207882517,2.64134111,58363.0,58362.0,0.07992517]
[1725207883626,2.64134111,58363.0,58355.0,0.1529]
[1725207883627,0.002,58356.0,58355.0,0.1529]
[1725207883854,0.171373,58352.0,58351.0,0.0004]
[1725207884099,3.50197999,58352.0,58351.0,0.0004]
[1725207884321,4.2303906,58352.0,58351.0,0.0004]
[1725207884987,4.2303906,58352.0,58351.0,0.0034]
[1725207885191,4.18747399,58352.0,58351.0,0.0004]
[1725207885654,4.20347399,58352.0,58351.0,0.0004]
[1725207887227,4.19547399,58352.0,58351.0,0.0004]
[1725207887463,4.19247399,58352.0,58351.0,0.0004]
[1725207887693,4.20347399,58352.0,58351.0,0.0004]
[1725207887930,4.20330247,58352.0,58351.0,0.0004]
[1725207888149,4.19230247,58352.0,58351.0,0.0004]
[1725207888389,4.21330247,58352.0,58351.0,0.0004]
[1725207888821,4.60096608,58352.0,58351.0,0.0004]
[1725207889025,4.60096608,58352.0,58340.0,0.0677]
[1725207889026,1.70009544,58343.0,58340.0,0.0677]
[1725207889236,4.11388544,58343.0,58340.0,0.0677]
[1725207889511,3.71137944,58343.0,58340.0,0.0677]
[1725207889722,3.71137944,58343.0,58342.0,0.161898]
[1725207889930,2.03802244,58343.0,58342.0,0.161898]
[1725207891020,1.881527,58343.0,58342.0,0.161898]
[1725207891241,1.465727,58343.0,58342.0,0.161898]
[1725207891667,1.47257585,58343.0,58342.0,0.161898]
[1725207892993,1.79862293,58343.0,58342.0,0.161898]
[1725207893420,1.47257585,58343.0,58342.0,0.161898]
[1725207893840,1.63007129,58343.0,58342.0,0.161898]
[1725207894282,1.97287129,58343.0,58342.0,0.161898]
[1725207894508,1.63007129,58343.0,58342.0,0.161898]
[1725207894967,1.48814429,58343.0,58342.0,0.161898]
[1725207895171,2.86815651,58343.0,58342.0,0.161898]
[1725207895598,3.23786016,58343.0,58342.0,0.161898]
[1725207897586,3.99926016,58343.0,58342.0,1e-06]
[1725207897804,3.99926016,58343.0,58335.0,0.008998]
[1725207897805,1.542784,58336.0,58335.0,0.008998]
[1725207898008,4.11406944,58336.0,58335.0,0.008998]
[1725207898230,4.45691044,58336.0,58335.0,0.008998]
[1725207898443,4.48381836,58336.0,58335.0,0.008998]
[1725207900113,4.55241836,58336.0,58335.0,0.008998]
[1725207900337,4.72901553,58336.0,58335.0,0.008998]
[1725207900753,4.71501553,58336.0,58335.0,0.008998]
[1725207901189,2.235752,58332.0,58331.0,0.0004]
[1725207901407,2.41624744,58332.0,58331.0,0.0004]
[1725207901620,4.90167599,58332.0,58331.0,0.0004]
[1725207902947,3.66921,58332.0,58331.0,0.1476]
[1725207903172,2.24767744,58332.0,58331.0,0.1476]
[1725207903813,2.26167744,58332.0,58331.0,0.0004]
[1725207904025,2.77744103,58332.0,58331.0,0.0004]
[1725207904251,3.12744103,58332.0,58331.0,0.0004]
[1725207904466,3.16444103,58332.0,58331.0,0.0004]
[1725207904688,3.15044103,58332.0,58331.0,0.0004]
[1725207905130,3.16444103,58332.0,58331.0,0.0004]
[1725207905355,3.15044103,58332.0,58331.0,0.0004]
[1725207905784,3.16444103,58332.0,58331.0,0.0004]
[1725207906234,2.71714703,58332.0,58331.0,0.0004]
[1725207906448,4.99393703,58332.0,58331.0,0.0004]
[1725207906666,5.00793703,58332.0,58331.0,0.0004]
[1725207907336,4.99393703,58332.0,58331.0,0.0004]
[1725207907564,4.97993703,58332.0,58331.0,0.0004]
[1725207907982,4.82538539,58332.0,58331.0,0.0004]
[1725207908195,4.14522744,58332.0,58331.0,0.0004]
[1725207908402,4.14522744,58332.0,58322.0,0.008998]
[1725207908403,1.543126,58323.0,58322.0,0.008998]
[1725207908639,1.82796941,58323.0,58322.0,0.008998]
[1725207908884,1.99652105,58323.0,58322.0,0.008998]
[1725207909086,4.48858999,58323.0,58322.0,0.008998]
[1725207909312,4.83858999,58323.0,58322.0,0.008998]
[1725207909527,5.18150699,58323.0,58322.0,1e-06]
[1725207910216,5.18850699,58323.0,58322.0,1e-06]
[1725207910435,5.35705863,58323.0,58322.0,1e-06]
[1725207911070,1.886368,58313.0,58311.0,0.0004]
[1725207911346,2.01371598,58313.0,58311.0,0.0004]
[1725207911575,1.84222798,58313.0,58311.0,0.0004]
[1725207911784,2.11162332,58313.0,58311.0,0.0004]
[1725207911994,4.40895479,58313.0,58311.0,0.0004]
[1725207912202,4.06597879,58313.0,58311.0,0.0004]
[1725207912421,3.99064266,58313.0,58311.0,0.0004]
[1725207912634,4.00464266,58313.0,58311.0,0.0004]
[1725207913081,4.01864266,58313.0,58311.0,0.0004]
[1725207913532,4.00464266,58313.0,58311.0,0.0004]
[1725207913757,2.79739466,58313.0,58312.0,0.161598]
[1725207913971,2.78339466,58313.0,58312.0,0.161598]
[1725207914188,2.75647547,58313.0,58312.0,0.161598]
[1725207914404,2.77047547,58313.0,58312.0,0.161598]
[1725207914616,2.75647547,58313.0,58312.0,0.161598]
[1725207914821,2.77047547,58313.0,58312.0,0.161598]
[1725207915048,2.45581347,58313.0,58312.0,0.161598]
[1725207915267,2.41881347,58313.0,58312.0,0.161598]
[1725207915495,1.66854047,58313.0,58312.0,0.161598]
[1725207915701,1.45884047,58313.0,58312.0,0.161598]
[1725207915910,1.45671547,58313.0,58312.0,0.161598]
[1725207916121,0.54800547,58313.0,58312.0,0.161598]
[1725207916338,0.541464,58313.0,58312.0,0.161598]
[1725207916793,0.528464,58313.0,58312.0,0.166598]
[1725207917212,0.542464,58313.0,58312.0,0.166598]
[1725207917436,0.514464,58313.0,58312.0,0.166598]
[1725207917643,0.614464,58313.0,58312.0,0.166598]
[1725207917852,0.620464,58313.0,58312.0,0.166598]
[1725207918083,0.631464,58313.0,58312.0,0.166598]
[1725207918502,0.620464,58313.0,58312.0,0.166598]
[1725207918919,0.624464,58313.0,58312.0,0.166598]
[1725207919393,0.13691625,58313.0,58312.0,0.168598]
[1725207919600,0.13691625,58313.0,58312.0,0.18202755]
[1725207919601,0.03691625,58313.0,58312.0,0.18202755]
[1725207919818,0.01,58313.0,58312.0,0.35351839]
[1725207920655,0.004,58313.0,58312.0,0.178598]
[1725207920867,0.005,58313.0,58312.0,0.179598]
[1725207921068,0.001,58313.0,58312.0,0.179598]
[1725207921287,0.101,58313.0,58312.0,0.179598]
[1725207921499,0.003,58313.0,58312.0,0.180598]
[1725207922341,0.002,58313.0,58312.0,0.3535184]
[1725207922549,0.1,58314.0,58313.0,0.331087]
[1725207922757,0.1,58319.0,58316.0,0.01]
[1725207922974,0.27147,58319.0,58318.0,0.002]
[1725207923211,0.27147,58319.0,58318.0,0.1586]
[1725207923823,0.27147,58319.0,58318.0,0.1576]
[1725207923824,0.96170017,58319.0,58318.0,0.1576]
[1725207924040,0.96170017,58319.0,58318.0,0.1566]
[1725207924684,0.96270017,58319.0,58318.0,0.1576]
[1725207924884,0.615411,58319.0,58318.0,0.1576]
[1725207925088,0.615411,58319.0,58318.0,0.1566]
[1725207925516,0.615411,58319.0,58318.0,0.1576]
[1725207925719,0.614411,58319.0,58318.0,0.1576]
[1725207926346,0.614411,58319.0,58318.0,0.1586]
[1725207927386,0.614411,58319.0,58318.0,0.1606]
[1725207927387,0.957352,58319.0,58318.0,0.1606]
[1725207927807,0.957352,58319.0,58318.0,0.1576]
[1725207928030,0.957352,58319.0,58318.0,0.1606]
[1725207928231,0.957352,58319.0,58318.0,0.1596]
[1725207928438,0.957352,58319.0,58318.0,0.1566]
[1725207928644,0.958352,58319.0,58318.0,0.1586]
[1725207929059,0.957352,58319.0,58318.0,0.1586]
[1725207929687,0.958171,58319.0,58318.0,0.1586]
[1725207930085,0.958171,58319.0,58318.0,0.1596]
[1725207930455,0.958171,58319.0,58318.0,0.1576]
[1725207930955,0.958171,58319.0,58318.0,0.1586]
[1725207931331,0.958171,58319.0,58318.0,0.1576]
[1725207932106,0.958171,58319.0,58318.0,0.1566]
[1725207932320,1.132211,58319.0,58318.0,0.1576]
[1725207932966,1.475152,58319.0,58318.0,0.1576]
[1725207933626,0.274859,58319.0,58312.0,0.008998]
[1725207933838,0.514464,58313.0,58312.0,0.008998]
[1725207934072,1.838767,58313.0,58312.0,0.008998]
[1725207934329,1.84316225,58313.0,58312.0,0.008998]
[1725207934760,2.18613825,58313.0,58312.0,0.008998]
[1725207935181,2.18713825,58313.0,58312.0,0.010998]
[1725207935607,2.18813825,58313.0,58312.0,0.010998]
[1725207937398,2.35229464,58313.0,58312.0,0.010998]
[1725207938028,2.584119,58313.0,58312.0,0.010998]
[1725207938239,2.5885366,58313.0,58312.0,0.010998]
[1725207938903,2.5875366,58313.0,58312.0,0.010998]
[1725207939124,2.5915366,58313.0,58312.0,0.010998]
[1725207939352,2.08290316,58313.0,58312.0,0.010998]
[1725207939598,4.5422448,58313.0,58312.0,0.010998]
[1725207940468,4.5412448,58313.0,58312.0,0.008998]
[1725207940725,4.5372448,58313.0,58312.0,0.008998]
[1725207940946,4.5472448,58313.0,58312.0,0.008998]
[1725207941167,4.5412448,58313.0,58312.0,0.008998]
[1725207941599,4.5472448,58313.0,58312.0,0.008998]
[1725207943156,4.37869316,58313.0,58312.0,0.008998]
[1725207943574,4.37869316,58313.0,58311.0,0.0004]
[1725207943575,2.230383,58312.0,58311.0,1e-06]
[1725207943782,4.64860121,58312.0,58311.0,1e-06]
[1725207943990,4.644173,58312.0,58311.0,1e-06]
[1725207944210,4.90072464,58312.0,58311.0,1e-06]
[1725207944429,4.93207579,58312.0,58311.0,1e-06]
[1725207944643,4.76352415,58312.0,58311.0,1e-06]
[1725207944858,4.77752415,58312.0,58311.0,1e-06]
[1725207945283,4.76352415,58312.0,58311.0,1e-06]
[1725207945718,4.77752415,58312.0,58311.0,1e-06]
[1725207947756,4.80552415,58312.0,58311.0,1e-06]
[1725207947962,4.80452415,58312.0,58311.0,1e-06]
[1725207948184,4.95907579,58312.0,58311.0,1e-06]
[1725207948437,4.96007579,58312.0,58311.0,1e-06]
[1725207948675,4.96007579,58312.0,58309.0,1e-06]
[1725207948676,0.001,58310.0,58309.0,1e-06]
[1725207948884,0.172514,58304.0,58303.0,0.008998]
[1725207949113,1.45909644,58304.0,58303.0,0.008998]
[1725207949329,4.45894444,58304.0,58303.0,0.008998]
[1725207949755,4.48487011,58304.0,58303.0,0.008998]
[1725207950182,4.65342175,58304.0,58303.0,0.008998]
[1725207950815,4.14284111,58304.0,58303.0,0.008998]
[1725207951023,4.15684111,58304.0,58303.0,0.008998]
[1725207951231,4.17084111,58304.0,58303.0,0.008998]
[1725207951439,4.16341223,58304.0,58303.0,0.008998]
[1725207951867,4.14941223,58304.0,58303.0,0.008998]
[1725207952092,4.16341223,58304.0,58303.0,0.008998]
[1725207952319,4.33196387,58304.0,58303.0,0.008998]
[1725207952755,4.14941223,58304.0,58303.0,0.008998]
[1725207952978,3.99091679,58304.0,58303.0,0.008998]
[1725207953225,3.65658523,58304.0,58303.0,0.008998]
[1725207953519,3.64258523,58304.0,58303.0,0.008998]
[1725207953737,2.21886623,58304.0,58303.0,0.008998]
[1725207953949,2.46162887,58304.0,58303.0,0.008998]
[1725207954165,2.41985352,58304.0,58303.0,0.008998]
[1725207954385,2.76288252,58304.0,58303.0,0.008998]
[1725207954832,2.41985352,58304.0,58303.0,0.008998]
[1725207956423,2.24686623,58304.0,58303.0,0.008998]
[1725207959465,2.58989523,58304.0,58303.0,0.008998]
[1725207960383,2.24686623,58304.0,58303.0,0.008998]
[1725207961307,1.88562223,58304.0,58303.0,0.008998]
[1725207961530,4.17641223,58304.0,58303.0,0.008998]
[1725207961747,4.34496387,58304.0,58303.0,0.008998]
[1725207962418,4.34596387,58304.0,58303.0,0.008998]
[1725207962638,4.17741223,58304.0,58303.0,0.008998]
[1725207963279,4.58928023,58304.0,58303.0,0.008998]
[1725207963508,3.37346879,58304.0,58303.0,0.162498]
[1725207963750,3.16958479,58304.0,58303.0,0.162498]
[1725207964217,3.33813643,58304.0,58303.0,0.162498]
[1725207964433,2.97287023,58304.0,58303.0,0.162498]
[1725207965127,2.92391623,58304.0,58303.0,0.162498]
[1725207965806,3.26694523,58304.0,58303.0,0.162498]
[1725207967140,2.92391623,58304.0,58303.0,0.162498]
[1725207967794,3.09246787,58304.0,58303.0,0.162498]
[1725207970925,2.92391623,58304.0,58303.0,0.162498]
[1725207972480,3.79600123,58304.0,58303.0,0.162498]
[1725207973134,3.47600123,58304.0,58303.0,0.162498]
[1725207974496,3.39905123,58304.0,58303.0,0.162498]
[1725207974725,3.51582423,58304.0,58303.0,0.162498]
[1725207974954,3.17279523,58304.0,58303.0,0.162498]
[1725207975227,3.83776157,58304.0,58303.0,0.008998]
[1725207975466,3.88684059,58304.0,58303.0,0.008998]
[1725207975677,3.78924865,58304.0,58303.0,0.008998]
[1725207975896,3.62069701,58304.0,58303.0,0.091998]
[1725207976122,3.59377134,58304.0,58303.0,0.091998]
[1725207976356,3.48889856,58304.0,58303.0,0.091998]
[1725207977008,3.48875597,58304.0,58303.0,0.091998]
[1725207977224,3.65730761,58304.0,58303.0,0.091998]
[1725207977716,3.72820369,58304.0,58303.0,0.008998]
[1725207978383,4.12333269,58304.0,58303.0,0.008998]
[1725207978617,4.07936185,58304.0,58303.0,0.008998]
[1725207978805,4.18726556,58304.0,58303.0,0.008998]
[1725207979125,3.62258492,58304.0,58303.0,0.008998]
[1725207979353,3.51568121,58304.0,58303.0,0.078298]
[1725207979596,3.57591387,58304.0,58303.0,0.078298]
[1725207979837,3.57591387,58304.0,58303.0,0.008998]
[1725207981608,3.51568121,58304.0,58303.0,0.008998]
[1725207981820,3.57591404,58304.0,58303.0,0.008998]
[1725207982030,3.57673204,58304.0,58303.0,0.008998]
[1725207982717,3.86052821,58304.0,58303.0,0.008998]
[1725207983158,3.90999602,58304.0,58303.0,0.008998]
[1725207983392,4.02907985,58304.0,58303.0,0.008998]
[1725207983631,2.51714287,58304.0,58303.0,0.008998]
[1725207983880,4.80793287,58304.0,58303.0,0.008998]
[1725207984064,4.46490387,58304.0,58303.0,0.008998]
[1725207984325,4.80793287,58304.0,58303.0,0.008998]
[1725207984544,4.46490387,58304.0,58303.0,0.008998]
[1725207984989,4.80693287,58304.0,58303.0,0.008998]
[1725207985503,4.8531756,58304.0,58303.0,0.008998]
[1725207985722,4.80693287,58304.0,58303.0,0.008998]
[1725207986163,1.886758,58301.0,58300.0,4e-05]
[1725207986388,1.909758,58301.0,58300.0,4e-05]
[1725207986608,2.009758,58301.0,58300.0,4e-05]
[1725207986844,4.300548,58301.0,58300.0,4e-05]
[1725207987296,4.300548,58301.0,58300.0,0.06934]
[1725207987520,4.301548,58301.0,58300.0,0.06934]
[1725207987819,4.328548,58301.0,58300.0,0.06934]
[1725207988955,4.327548,58301.0,58300.0,0.06934]
[1725207989628,4.49609964,58301.0,58300.0,0.06934]
[1725207990085,4.49709964,58301.0,58300.0,0.06934]
[1725207990309,4.328548,58301.0,58300.0,0.06934]
[1725207994322,2.037758,58301.0,58300.0,0.06934]
[1725207994765,2.037758,58301.0,58300.0,0.0702398]
[1725207994975,4.328548,58301.0,58300.0,0.0702398]
[1725207996582,4.37662406,58301.0,58300.0,0.0702398]
[1725207996795,4.5451757,58301.0,58300.0,0.0702398]
[1725207998292,3.984501,58301.0,58300.0,0.0702398]
[1725207998947,4.327548,58301.0,58300.0,0.0702398]
[1725207999164,4.37562406,58301.0,58300.0,0.0009398]
[1725207999378,4.37662406,58301.0,58300.0,0.0009398]
[1725208000244,4.42407334,58301.0,58300.0,0.0009398]
[1725208000462,4.59262498,58301.0,58300.0,0.0009398]
[1725208000913,4.59162498,58301.0,58300.0,8e-07]
[1725208001128,2.64388198,58301.0,58300.0,8e-07]
[1725208001555,2.59580592,58301.0,58300.0,8e-07]
[1725208001734,2.59680592,58301.0,58300.0,8e-07]
[1725208004194,2.64488198,58301.0,58300.0,8e-07]
[1725208005985,2.0828627,58301.0,58300.0,8e-07]
[1725208006169,2.2543857,58301.0,58300.0,8e-07]
[1725208006514,2.5974327,58301.0,58300.0,8e-07]
[1725208006950,2.54935664,58301.0,58300.0,8e-07]
[1725208008063,2.64463836,58301.0,58300.0,8e-07]
[1725208009999,0.001,58294.0,58293.0,0.0628]
[1725208010211,4.27405572,58294.0,58293.0,0.0628]
[1725208010444,4.39705572,58294.0,58293.0,0.0628]
[1725208010687,4.42398611,58294.0,58293.0,0.0628]
[1725208011193,4.42898611,58294.0,58293.0,0.0628]
[1725208011425,4.51132224,58294.0,58293.0,0.0628]
[1725208011638,4.43598611,58294.0,58293.0,0.0628]
[1725208012058,4.43498611,58294.0,58293.0,0.0628]
[1725208012277,4.43598611,58294.0,58293.0,0.0628]
[1725208015638,4.44436149,58294.0,58293.0,0.0628]
[1725208016120,2.15357149,58294.0,58293.0,0.0628]
[1725208016556,2.32212313,58294.0,58293.0,0.0628]
[1725208016775,4.61291313,58294.0,58293.0,0.0628]
[1725208018355,4.44436149,58294.0,58293.0,0.0628]
[1725208018557,4.10127349,58294.0,58293.0,0.0628]
[1725208019870,4.10127349,58294.0,58293.0,0.0636998]
[1725208020318,4.10027349,58294.0,58293.0,0.0636998]
[1725208020543,3.41656349,58294.0,58293.0,0.0636998]
[1725208021713,1.84736377,58294.0,58293.0,0.1455998]
[1725208021962,1.94264549,58294.0,58293.0,0.1455998]
[1725208024451,1.50427577,58294.0,58293.0,0.1455998]
[1725208024667,1.62124477,58294.0,58293.0,0.1455998]
[1725208025360,0.90502577,58294.0,58293.0,0.16109958]
[1725208025588,0.90502577,58294.0,58293.0,0.1505998]
[1725208025848,0.87809538,58294.0,58293.0,0.1505998]
[1725208026555,0.53500738,58294.0,58293.0,0.1505998]
[1725208026768,0.53500738,58294.0,58293.0,0.1605998]
[1725208026989,0.63500738,58294.0,58293.0,0.1605998]
[1725208027210,0.626632,58294.0,58293.0,0.1605998]
[1725208027638,0.621632,58294.0,58293.0,0.1605998]
[1725208027851,0.614632,58294.0,58293.0,0.1605998]
[1725208028069,0.619632,58294.0,58293.0,0.1615998]
[1725208028943,0.96272,58294.0,58293.0,0.1615998]
[1725208029133,0.98964617,58294.0,58293.0,0.1615998]
[1725208029363,0.98464617,58294.0,58293.0,0.1615998]
[1725208029580,0.98564617,58294.0,58293.0,0.1635998]
[1725208030103,0.98564617,58294.0,58293.0,0.1485998]
[1725208030104,1.51051011,58294.0,58293.0,0.1485998]
[1725208030237,1.48543405,58294.0,58293.0,0.1485998]
[1725208030445,2.76864317,58294.0,58293.0,0.1485998]
[1725208030654,2.42555517,58294.0,58293.0,0.1485998]
[1725208033426,2.33608517,58294.0,58293.0,0.1485998]
[1725208033643,2.67917317,58294.0,58293.0,0.1485998]
[1725208036941,2.41412517,58294.0,58293.0,0.1485998]
[1725208037592,2.07103717,58294.0,58293.0,0.1485998]
[1725208037867,1.49020317,58294.0,58293.0,0.1485998]
[1725208038372,1.58548489,58294.0,58293.0,0.1485998]
[1725208039516,1.35173417,58294.0,58293.0,0.1485998]
[1725208040234,1.46112417,58294.0,58293.0,0.1485998]
[1725208040480,1.35173417,58294.0,58293.0,0.1485998]
[1725208044507,1.54838017,58294.0,58293.0,0.1485998]
[1725208045713,1.50364617,58294.0,58293.0,0.1485998]
[1725208045946,1.35173417,58294.0,58293.0,0.1485998]
[1725208046680,1.32873417,58294.0,58293.0,0.1485998]
[1725208046902,0.98564617,58294.0,58293.0,0.1535998]
[1725208047352,0.64255817,58294.0,58293.0,0.1535998]
[1725208047816,0.98564617,58294.0,58293.0,0.1635998]
[1725208048038,0.95872,58294.0,58293.0,0.1635998]
[1725208051500,0.98564549,58294.0,58293.0,0.1585998]
[1725208051716,0.98564549,58294.0,58293.0,0.1535998]
[1725208052144,0.98564549,58294.0,58293.0,0.1635998]
[1725208052580,1.35173349,58294.0,58293.0,0.1635998]
[1725208053303,1.00864549,58294.0,58293.0,0.1635998]
[1725208053528,1.60512321,58294.0,58293.0,0.1485998]
[1725208053744,1.92128572,58294.0,58293.0,0.1485998]
[1725208054184,2.26437372,58294.0,58293.0,0.1485998]
[1725208054413,2.26437372,58294.0,58293.0,0.0666998]
[1725208054627,1.92128572,58294.0,58293.0,0.0666998]
[1725208055726,2.26437372,58294.0,58293.0,0.0666998]
[1725208056375,1.519088,58294.0,58293.0,0.0666998]
[1725208056609,1.61436972,58294.0,58293.0,0.0666998]
[1725208056837,1.324808,58294.0,58293.0,0.1441998]
[1725208058272,0.98172,58294.0,58293.0,0.1441998]
[1725208059243,0.76788331,58294.0,58293.0,0.1441998]
[1725208059472,0.93942731,58294.0,58293.0,0.1441998]
[1725208060659,0.96635357,58294.0,58293.0,0.1441998]
[1725208061536,0.96635357,58294.0,58293.0,0.1491998]
[1725208061760,0.96635357,58294.0,58293.0,0.1501998]
[1725208061981,0.96635357,58294.0,58293.0,0.1491998]
[1725208064313,0.93942731,58294.0,58293.0,0.1491998]
[1725208068120,0.93942731,58294.0,58293.0,0.1501998]
[1725208068361,0.93942731,58294.0,58293.0,0.1491998]
[1725208070605,0.96635339,58294.0,58293.0,0.1491998]
[1725208074262,0.93942731,58294.0,58293.0,0.1491998]
[1725208074725,1.28251531,58294.0,58293.0,0.1491998]
[1725208074954,0.93942731,58294.0,58293.0,0.1491998]
[1725208079133,1.28251531,58294.0,58293.0,0.1491998]
[1725208079353,0.93942731,58294.0,58293.0,0.1491998]
[1725208080029,1.28251531,58294.0,58293.0,0.1491998]
[1725208080243,1.28333331,58294.0,58293.0,0.1491998]
[1725208080675,1.31025957,58294.0,58293.0,0.1491998]
[1725208082480,0.96717157,58294.0,58293.0,0.1491998]
[1725208082880,1.31025957,58294.0,58293.0,0.1491998]
[1725208084206,1.40978331,58294.0,58293.0,0.1491998]
[1725208089560,1.72789631,58294.0,58293.0,0.1491998]
[1725208089840,1.61779631,58294.0,58293.0,0.1491998]
[1725208090279,1.61779631,58294.0,58293.0,0.1441998]
[1725208090514,1.61779631,58294.0,58293.0,0.0038998]
[1725208090515,2.10868015,58294.0,58293.0,0.0038998]
[1725208090739,2.10968015,58294.0,58293.0,0.0038998]
[1725208090964,2.10868015,58294.0,58293.0,0.0038998]
[1725208091187,2.10289678,58294.0,58293.0,0.0038998]
[1725208091649,2.10189678,58294.0,58293.0,0.0018998]
[1725208091862,2.1288257,58294.0,58293.0,0.0008998]
[1725208092131,2.1408257,58294.0,58293.0,0.0008998]
[1725208092361,2.04110592,58294.0,58293.0,0.0008998]
[1725208092576,2.13338764,58294.0,58293.0,0.0008998]
[1725208093015,2.14038764,58294.0,58293.0,0.0008998]
[1725208094357,2.02263792,58294.0,58293.0,0.0008998]
[1725208096632,2.12263792,58294.0,58293.0,0.0008998]
[1725208097603,2.29118956,58294.0,58293.0,0.0008998]
[1725208098051,2.29562762,58294.0,58293.0,0.0008998]
[1725208100541,3.67657962,58294.0,58293.0,0.0008998]
[1725208100758,3.50802798,58294.0,58293.0,0.0008998]
[1725208100975,2.09971192,58294.0,58293.0,0.0008998]
[1725208102524,1.4717272,58294.0,58293.0,0.0008998]
[1725208102798,1.6458072,58294.0,58293.0,0.0008998]
[1725208103521,1.6458072,58294.0,58293.0,0.1523998]
[1725208103522,0.9837172,58294.0,58293.0,0.1523998]
[1725208103713,0.95678828,58294.0,58293.0,0.1523998]
[1725208103996,0.61370028,58294.0,58293.0,0.1523998]
[1725208104689,0.63670028,58294.0,58293.0,0.1523998]
[1725208104941,0.62070028,58294.0,58293.0,0.1523998]
[1725208105159,0.62870028,58294.0,58293.0,0.1523998]
[1725208105581,0.97178828,58294.0,58293.0,0.1523998]
[1725208107938,0.97178828,58294.0,58293.0,0.17957958]
[1725208107939,0.26261228,58294.0,58293.0,0.17957958]
[1725208108172,0.26261228,58294.0,58293.0,0.1623998]
[1725208108173,0.28953784,58294.0,58293.0,0.1623998]
[1725208108391,0.13574356,58294.0,58293.0,0.1623998]
[1725208108609,0.30728756,58294.0,58293.0,0.1623998]
[1725208110395,0.30728756,58294.0,58293.0,0.18301018]
[1725208110396,0.13569501,58294.0,58293.0,0.18301018]
[1725208110627,0.03569501,58294.0,58293.0,0.35455714]
[1725208111091,0.00876945,58294.0,58293.0,0.69865114]
[1725208111339,0.34382,58309.0,58293.0,0.69865114]
[1725208111340,0.171505,58307.0,58306.0,0.0991]
[1725208111597,0.34382,58309.0,58308.0,0.1525]
[1725208111598,0.172318,58309.0,58308.0,0.1525]
[1725208111831,0.172318,58309.0,58308.0,0.1615]
[1725208112076,0.515318,58309.0,58308.0,0.1615]
[1725208112347,1.29560072,58309.0,58308.0,0.005]
[1725208112558,0.171517,58303.0,58302.0,0.0624]
[1725208112780,1.564728,58303.0,58302.0,0.0624]
[1725208112999,1.92160906,58303.0,58302.0,0.0624]
[1725208113245,2.02160906,58303.0,58302.0,0.0624]
[1725208114145,1.803167,58303.0,58302.0,0.07775]
[1725208114375,1.200664,58301.0,58300.0,0.003]
[1725208114597,1.200664,58301.0,58299.0,0.066]
[1725208114598,0.514579,58300.0,58299.0,0.07]
[1725208114860,0.614579,58300.0,58299.0,0.078]
[1725208115094,0.980632,58300.0,58299.0,0.078]
[1725208115992,0.982632,58300.0,58299.0,0.095]
[1725208117299,1.37376106,58300.0,58299.0,0.017]
[1725208117538,1.37819912,58300.0,58299.0,0.017]
[1725208118016,1.37819912,58300.0,58299.0,0.009]
[1725208118017,1.37719912,58300.0,58299.0,0.009]
[1725208118454,1.32912306,58300.0,58299.0,0.006]
[1725208118672,2.09111706,58300.0,58299.0,0.01]
[1725208118890,2.09011706,58300.0,58299.0,0.004]
[1725208119111,1.200766,58296.0,58295.0,0.004]
[1725208119328,1.964599,58296.0,58295.0,0.004]
[1725208119755,0.763833,58296.0,58293.0,0.0048998]
[1725208119980,1.642547,58295.0,58294.0,0.004]
[1725208120199,1.642547,58295.0,58293.0,0.0008998]
[1725208120200,1.200808,58294.0,58293.0,0.0008998]
[1725208120415,2.83215,58294.0,58293.0,0.0008998]
[1725208120649,2.85515,58294.0,58293.0,0.0008998]
[1725208120875,3.298238,58294.0,58293.0,0.0008998]
[1725208121754,3.307236,58294.0,58293.0,0.0008998]
[1725208121984,3.47578764,58294.0,58293.0,0.0008998]
[1725208122225,1.84444564,58294.0,58293.0,0.0008998]